Cogmind - Beta 11 --- EXPLORER MODE // 2022.03.26 @ 19:15:19 Player: Zaltroth Result: Self-destructed Performance ------------- Evolutions (5) 2500 Regions Visited (8) 1600 Robots Destroyed (223) 1115 Value Destroyed (7053) 7053 Prototype IDs (15) 300 Alien Tech Used (0) 0 Bonus (1052) 1052 TOTAL SCORE: 13620 Bonus ------- High Alert Combat Kills 1104 Follower Combat Kills 74 Friendly Fire -126 Cogmind --------- Core Integrity 651/1000 Matter 285/300 Energy 293/530 System Corruption 9% Temperature Danger (434) Movement Immobile (Siege) Location -5/Extension Parts ------- > --- POWER (2) -------- Neutrino Core Neutrino Core > --- PROPULSION (4) --- Heavy Treads Heavy Treads > --- UTILITY (9) ------ Improved Heat Sink Large Storage Unit Advanced Visual Processing Unit Advanced Signal Interpreter Advanced Targeting Computer Point Defense System > --- WEAPON (3) ------- Wave Gun Wave Gun > --- INVENTORY (15) --- Light Angular Momentum Engine Heavy Treads Heavy Treads Flexi-carbon Leg Large Storage Unit Heavy Gatling Laser KE Penetrator Peak State ------------ > --- POWER ------------ Improved Deuterium Engine Neutrino Core > --- PROPULSION ------- Heavy Treads Heavy Treads > --- UTILITY ---------- Advanced Heat Sink Improved Coolant Injector Large Storage Unit Energy Well Advanced Visual Processing Unit Advanced Targeting Computer Improved Light Armor Plating Layered Medium Armor Plating Point Defense System > --- WEAPON ----------- Wave Gun Wave Gun Heavy Gatling Laser > --- INVENTORY -------- Light Angular Momentum Engine Heavy Treads Heavy Treads Flexi-carbon Leg Large Storage Unit Advanced Signal Interpreter Authchip [Propulsion] Authchip [Device] Authchip [Processor] Authchip [Weapon] Wave Gun Scatter Rocket Array [Rating: 96] Favorites ----------- Power Light Angular Momentum Engine Engine Light Angular Momentum Engine Power Core Neutrino Core Reactor Light Antimatter Reactor Propulsion Improved Carbon-fiber Leg Treads Light Treads Leg Improved Carbon-fiber Leg Wheel Armored Huge Wheel Hover Unit Aerolev Unit Utility Large Storage Unit Device Advanced Heat Sink Storage Large Storage Unit Processor Advanced Targeting Computer Protection Hardened Light Armor Plating Weapon Gauss Rifle Energy Gun Heavy EM Shotgun Energy Cannon Advanced Beam Cannon Ballistic Gun Gauss Rifle Launcher Scatter Rocket Array Build | -11 -10 -9 -8 -8 -8 -6 -5 -5 ------- Run | Scr Mat Mat Mat Sto Rec Fac Fac Ext Slots Evolved 11 | . 1 2 2 . . 4 2 . Power 1 | . . . . . . 1 . . Propulsion 2 | . . 1 . . . . 1 . Utility 7 | . 1 1 1 . . 3 1 . Weapon 1 | . . . 1 . . . . . Parts Attached 179 | 7 7 22 19 17 1 67 26 13 Power 24 | 1 . 2 3 2 . 13 3 . Engine 10 | 1 . 2 1 2 . 3 1 . Core 13 | . . . 2 . . 9 2 . Reactor 1 | . . . . . . 1 . . Propulsion 35 | 2 2 6 6 2 . 13 4 . Treads 15 | 2 . 5 3 . . 3 2 . Leg 17 | . 2 1 3 1 . 10 . . Wheel 2 | . . . . . . . 2 . Hover 1 | . . . . 1 . . . . Flight . | . . . . . . . . . Utility 69 | 2 2 7 3 8 1 29 11 6 Device 33 | . 1 2 . 6 . 14 8 2 Storage 8 | 1 1 1 . . . 4 . 1 Processor 9 | 1 . 1 1 2 1 2 . 1 Hackware . | . . . . . . . . . Protection 19 | . . 3 2 . . 9 3 2 Artifact . | . . . . . . . . . Weapon 51 | 2 3 7 7 5 . 12 8 7 Energy Gun 30 | 2 . 2 3 2 . 9 6 6 Energy Cannon 10 | . 1 4 2 . . 3 . . Ballistic Gun 10 | . 2 1 2 2 . . 2 1 Ballistic Cannon . | . . . . . . . . . Launcher 1 | . . . . 1 . . . . Special Weapon . | . . . . . . . . . Impact Weapon . | . . . . . . . . . Slashing Weapon . | . . . . . . . . . Piercing Weapon . | . . . . . . . . . Special Melee Weapon . | . . . . . . . . . Unidentified Prototypes 10 | . . 2 3 2 . 1 2 . Corrupted Parts 8 | . . 3 . . . 5 . . System Corruption 13 | . . 6 . . . 7 . . Parts Lost 24 | . . 1 2 . . 13 . 8 Power 2 | . . . . . . 2 . . Propulsion 3 | . . . . . . 3 . . Utility 12 | . . . . . . 6 . 6 Weapon 7 | . . 1 2 . . 2 . 2 Highest Loss Streak 7 | . . 1 1 . . 3 . 7 To Critical Strikes . | . . . . . . . . . Average Slot Usage (%) 96 | . 99 99 99 99 100 94 87 86 Engine 6 | . 12 10 4 7 8 4 5 . Core 2 | . . . 4 . . 4 4 11 Treads 9 | . 20 17 22 . . 1 10 11 Leg 11 | . 4 12 2 24 25 16 . . Device 11 | . 12 4 8 14 8 13 13 15 Storage 9 | . 12 10 8 8 8 9 11 10 Processor 16 | . 12 18 16 17 25 18 11 11 Protection 5 | . . 6 8 . . 6 13 10 Energy Gun 11 | . 22 6 3 7 8 13 14 11 Energy Cannon 3 | . . 7 13 . . 2 . . Ballistic Gun 5 | . 1 5 6 15 16 2 . 4 Naked Turns . | . . . . . . . . . Heaviest Build 87 | 18 32 40 46 49 47 68 87 87 Greatest Support 149 | 40 40 60 63 54 54 78 149 140 Greatest Overweight (x) 14 | 3 2 1 2 14 . 1 . . Average Overweight (x) . | . . . . . . . . . Largest Inventory Capacity 15 | 10 15 15 15 15 15 15 15 15 Average Capacity 14 | 9 14 15 15 15 15 15 15 15 Most Carried 15 | 10 15 15 15 15 15 15 15 13 Average Carried 14 | 7 14 14 13 14 14 14 14 12 Final Capacity 15 | 10 15 15 15 15 15 15 15 15 Final Carried 15 | 10 15 14 15 15 15 15 13 9 Class Distribution -------------------- 33% | Hacker-Mutant 19% | Scavenger-Tank 18% | Scavenger-Gunner 16% | Hacker-Gunner 10% | Scavenger-Mutant Dominant Class ---------------- Hacker-Mutant | -10/Materials Hacker-Mutant | -9/Materials Hacker-Gunner | -8/Materials Scavenger-Gunner | -8/Storage Hacker-Mutant | -8/Recycling Hacker-Gunner | -6/Factory Scavenger-Tank | -5/Factory Scavenger-Tank | -5/Extension Resources | -11 -10 -9 -8 -8 -8 -6 -5 -5 ----------- Run | Scr Mat Mat Mat Sto Rec Fac Fac Ext Matter Collected 3199 | 236 75 444 236 649 3 962 302 292 Remotely . | . . . . . . . . . Salvage Created 11263 | 58 461 1304 1256 1627 143 3413 1901 1100 Parts 518 | 7 23 73 65 91 17 161 53 28 Haulers Intercepted 22 | . 2 6 3 5 . 3 1 2 Recyclers Shooed 12 | . 1 3 . 1 3 1 2 1 Parts Field Recycled . | . . . . . . . . . Retrieved Matter . | . . . . . . . . . Parts Self-Destructed . | . . . . . . . . . Prevented . | . . . . . . . . . Kills | -11 -10 -9 -8 -8 -8 -6 -5 -5 ------- Run | Scr Mat Mat Mat Sto Rec Fac Fac Ext Combat Hostiles Destroyed 130 | . 6 13 14 17 9 46 20 5 Guns 103 | . 6 8 4 17 8 38 18 4 Cannons 19 | . . 4 10 . . 4 1 . AOE 5 | . . . . . 1 4 . . Classes Destroyed 17 | 1 5 5 1 2 . 2 . 1 Worker 13 | . . 1 . 4 . 6 2 . Builder 10 | . . 2 1 3 1 3 . . Tunneler 5 | 3 . 1 . . . 1 . . Hauler 22 | . 2 6 3 5 . 3 1 2 Recycler 19 | . 1 4 4 1 . 1 4 4 Mechanic 1 | . . . . 1 . . . . Operator 3 | . . 1 . 1 . . 1 . Drone 10 | . . . . 1 9 . . . Watcher 20 | . 3 4 4 2 . 7 . . Swarmer 15 | . 2 2 3 . . 5 3 . Grunt 46 | . 4 6 4 5 . 17 10 . Brawler 9 | . . . . . . 6 . 3 Duelist 9 | . . 2 1 . . 5 1 . Sentry 24 | . . 3 4 11 . 4 2 . Hunter 9 | . . . 2 1 . 6 . . Programmer 8 | . . . . . . 3 4 1 Behemoth 1 | . . . . . . . . 1 Best Kill Streak 15 | 2 4 7 6 15 6 9 6 7 Combat Bots Only 5 | . 2 2 4 5 5 5 4 3 Max Kills in Single Turn 5 | 1 1 5 1 3 2 3 2 2 Gunslinging 1 | . . . . . . 1 . . Exploded 1 | . . . . . 1 1 . . Melee . | . . . . . . . . . Uniques/NPCs Destroyed . | . . . . . . . . . Combat | -11 -10 -9 -8 -8 -8 -6 -5 -5 -------- Run | Scr Mat Mat Mat Sto Rec Fac Fac Ext Damage Taken 6595 | . 134 365 255 444 11 2660 838 1888 Core 758 | . 22 29 9 41 . 308 40 309 Absorbed by Shields 448 | . . . . . . 448 . . Reduced by Siege Mode 115 | . . . . . . . 43 72 Redirected to Shielding 128 | . . . . . . 125 3 . Regen/Repaired (Parts) 136 | . . . . 136 . . . . Core Remaining (%) 87 | 100 91 92 . . 90 63 . . Volleys Fired 434 | 4 34 73 41 56 16 116 49 45 Largest 3 | 2 2 2 3 3 1 3 3 3 Hottest 262 | 90 110 136 204 106 50 235 262 243 Shots Fired 1033 | 8 66 124 108 162 16 328 129 92 Gun 877 | 8 65 88 33 162 16 299 114 92 Cannon 156 | . 1 36 75 . . 29 15 . Launcher . | . . . . . . . . . Special . | . . . . . . . . . Kinetic 295 | . 2 60 21 110 . 70 . 32 Thermal 518 | 8 64 34 81 . . 150 121 60 Explosive . | . . . . . . . . . Electromagnetic 220 | . . 30 6 52 16 108 8 . Robot Hit Streak 71 | 5 46 16 22 34 11 42 40 71 Robot Miss Streak 7 | 1 2 3 3 5 3 7 2 1 Penetration Max 1 | . . . . 1 . 1 . . Secondary Targets 19 | . . . 1 3 . 9 4 2 Max Gunslinging Chain 1 | . . . 1 1 . 1 1 1 Shots Hit Robots 821 | 5 55 100 77 93 15 279 111 86 Core Hits 483 | 3 24 41 40 54 10 223 54 34 Critical Kills 6 | . . . 1 2 . 2 . 1 Critical Parts Destroyed 6 | . . 1 . 2 . 3 . . Critical Strikes 27 | . 5 1 2 4 . 10 2 3 Burn 13 | . 5 . 1 . . 3 2 2 Meltdown 1 | . . . 1 . . . . . Destroy 11 | . . 1 . 4 . 5 . 1 Corrupt 2 | . . . . . . 2 . . Melee Attacks . | . . . . . . . . . Impact . | . . . . . . . . . Slashing . | . . . . . . . . . Piercing . | . . . . . . . . . Sneak Attacks . | . . . . . . . . . Combat Hostiles . | . . . . . . . . . Follow-up Attacks . | . . . . . . . . . Damage Inflicted 20417 | 61 636 2156 1632 2254 460 7855 3105 2258 Guns 15783 | 61 619 1077 578 2154 376 5991 2669 2258 Cannons 2613 | . . 617 1045 . . 650 301 . Explosions 1807 | . . 430 . . 62 1208 107 . Melee . | . . . . . . . . . Ramming 214 | . 17 32 9 100 22 6 28 . Kinetic 4222 | . 18 772 307 1363 . 1068 . 694 Thermal 11719 | 61 601 836 1157 . 62 4520 2918 1564 Explosive 42 | . . . . . . 42 . . Electromagnetic 4220 | . . 516 159 791 376 2219 159 . Impact . | . . . . . . . . . Slashing . | . . . . . . . . . Piercing . | . . . . . . . . . Highest Corruption 9 | . 1 8 . . . 9 8 9 Average Corruption 5 | . 1 4 . . . 5 5 8 Corruption Purged . | . . . . . . . . . Corruption Blocked . | . . . . . . . . . Effects 108 | . 2 13 . . . 54 19 20 Message Errors 29 | . 2 3 . . . 13 7 4 Matter Fused 19 | . . 2 . . . 11 3 3 Heat Flow Errors 9 | . . 2 . . . 5 2 . Energy Discharges 16 | . . 2 . . . 8 3 3 Parts Rejected 2 | . . . . . . 1 1 . Data Loss (minor) 15 | . . 3 . . . 7 1 4 Data Loss (major) 7 | . . . . . . 3 2 2 Misfires 4 | . . 1 . . . 3 . . Alerts 2 | . . . . . . 1 . 1 Weapon Failures 5 | . . . . . . 2 . 3 Overload Shots . | . . . . . . . . . Overflow Damage 215 | . . 155 15 . 9 35 1 . Projectiles 16 | . . . 15 . . . 1 . Explosions 199 | . . 155 . . 9 35 . . Melee . | . . . . . . . . . Knockbacks . | . . . . . . . . . Impact . | . . . . . . . . . Kinetic . | . . . . . . . . . Secondary . | . . . . . . . . . Self-Inflicted Damage 417 | . . 40 . . 11 321 45 . Shots 10 | . . 1 . . 1 7 1 . Rammed 10 | . 3 4 1 . . . 2 . Targets Rammed 28 | . 4 4 1 12 4 1 2 . Kicked 18 | . 1 . . 12 4 1 . . Crushed . | . . . . . . . . . Highest Temperature 720 | 60 365 499 476 70 20 476 345 720 Average Temperature 133 | 24 117 150 177 25 5 118 128 214 Received Heat Transfer 1998 | . 96 255 117 252 . 677 361 240 Effects 42 | . . 8 9 . . 12 2 11 Shutdowns 16 | . . 2 2 . . 8 . 4 Energy Bleed 3 | . . . . . . . . 3 Interference 10 | . . 2 4 . . 2 2 . Matter Decay 1 | . . . . . . . . 1 Short Circuit 4 | . . 1 2 . . 1 . . Damage (minor) 2 | . . . 1 . . 1 . . Damage (major) 5 | . . 3 . . . . . 2 Damage (core) 1 | . . . . . . . . 1 Siege Activations 7 | . . . . . . . 4 3 Total Turns 87 | . . . . . . . 57 30 Longest Duration 23 | . . . . . . . 23 14 Robots Corrupted 1 | . . 1 . . . . . . Combat Hostiles 1 | . . 1 . . . . . . Parts Fried 12 | . . 1 . 2 4 5 . . Impact Corruptions . | . . . . . . . . . Robots Melted 3 | . . . 1 . . . 1 1 Combat Hostiles 2 | . . . . . . . 1 1 Parts Melted 45 | 1 6 1 6 . . 14 10 7 Heat Transferred 18297 | 161 1981 1262 2183 . 100 5860 4223 2527 Parts Sabotaged . | . . . . . . . . . Parts Stolen . | . . . . . . . . . Parts Stripped . | . . . . . . . . . Power Chain Reactions 13 | . . 1 . . 1 10 1 . Missiles Intercepted . | . . . . . . . . . Alert | -11 -10 -9 -8 -8 -8 -6 -5 -5 ------- Run | Scr Mat Mat Mat Sto Rec Fac Fac Ext Peak Influence 1299 | 15 126 310 372 306 92 1299 266 115 Initial 927 | . 7 11 80 16 . 927 73 . Average 246 | 6 34 136 117 104 17 812 119 15 Maximum Alert Level 4 | . . 1 1 1 . 4 1 . Low Security (%) 67 | 100 100 68 84 77 100 1 86 100 Level 1 12 | . . 31 15 22 . 9 13 . Level 2 5 | . . . . . . 23 . . Level 3 11 | . . . . . . 50 . . Level 4 3 | . . . . . . 14 . . Level 5 . | . . . . . . . . . High Security . | . . . . . . . . . Max Security . | . . . . . . . . . Squads Dispatched 19 | . . 1 2 3 . 8 5 . Investigation 2 | . . . . 1 . . 1 . Extermination 5 | . . . . . . 3 2 . Reinforcement 5 | . . 1 . 1 . 1 2 . Assault 3 | . . . 1 . . 2 . . Garrison 4 | . . . 1 1 . 2 . . Intercept . | . . . . . . . . . Searches Triggered 1 | . . . . . . 1 . . Construction Impeded 1 | . . . . . . . 1 . Haulers Reinforced . | . . . . . . . . . Active Scanning Responses . | . . . . . . . . . Cargo Convoy Interrupts . | . . . . . . . . . Stealth | -11 -10 -9 -8 -8 -8 -6 -5 -5 --------- Run | Scr Mat Mat Mat Sto Rec Fac Fac Ext Distress Signals 10 | . . 5 1 2 . . . 2 Communications Jammed . | . . . . . . . . . Distress Signals . | . . . . . . . . . Times Spotted 224 | . 14 24 22 23 36 62 23 20 Peak Tracking Total 11 | . 3 4 3 6 6 5 4 11 Tactical Retreats 7 | . 1 1 . 1 . 4 . . Traps | -11 -10 -9 -8 -8 -8 -6 -5 -5 ------- Run | Scr Mat Mat Mat Sto Rec Fac Fac Ext Traps Triggered 11 | . 1 5 . 2 . 1 2 . Indirectly . | . . . . . . . . . Trap Hack Attempts . | . . . . . . . . . Triggered . | . . . . . . . . . Disarmed . | . . . . . . . . . Reprogrammed . | . . . . . . . . . Reused . | . . . . . . . . . Traps Extracted . | . . . . . . . . . Installed . | . . . . . . . . . Triggered . | . . . . . . . . . Machines | -11 -10 -9 -8 -8 -8 -6 -5 -5 ---------- Run | Scr Mat Mat Mat Sto Rec Fac Fac Ext Machines Disabled 22 | . . 5 2 3 1 10 1 . Max in Single Turn 5 | . . 5 1 1 1 3 1 . Garrison Access 3 | . . . 1 . . 1 1 . Machines Sabotaged . | . . . . . . . . . Garrisons Compromised . | . . . . . . . . . Overloaded Fab Kills . | . . . . . . . . . Hacking | -11 -10 -9 -8 -8 -8 -6 -5 -5 --------- Run | Scr Mat Mat Mat Sto Rec Fac Fac Ext Machines Accessed 59 | . 9 8 5 13 7 8 9 . Terminals 39 | . 7 5 5 8 6 5 3 . Fabricators 1 | . . . . . . 1 . . Repair Stations 3 | . 1 . . 2 . . . . Recycling Units 8 | . 1 1 . 2 1 1 2 . Scanalyzers 4 | . . 2 . . . . 2 . Garrison Access 4 | . . . . 1 . 1 2 . Total Hacks 180 | . 23 31 17 39 32 19 19 . Successful 127 | . 15 26 14 32 19 11 10 . Failed 53 | . 8 5 3 7 13 8 9 . Catastrophic 3 | . 1 . . . 1 1 . . Database Lockouts . | . . . . . . . . . Manual 104 | . 18 10 11 14 28 14 9 . Terminals 115 | . 17 15 17 20 30 12 4 . Fabricators 2 | . . . . . . 2 . . Repair Stations 10 | . 3 . . 7 . . . . Recycling Units 24 | . 3 5 . 6 2 2 6 . Scanalyzers 16 | . . 11 . . . . 5 . Garrison Access 13 | . . . . 6 . 3 4 . Terminal Hacks 51 | . 4 7 9 12 13 4 2 . Record 2 | . 1 . . 1 . . . . Part Schematic 12 | . . . . 1 11 . . . Robot Schematic 1 | . . . . . 1 . . . Robot Analysis 1 | . . . 1 . . . . . Prototype ID Bank 3 | . . 3 . . . . . . Open Door 3 | . . . . 3 . . . . Open DSF 2 | . . . . . . 1 1 . Branch Access Points 2 | . . . 1 . . . 1 . Emergency Access Points 1 | . . . . 1 . . . . Terminal Index 3 | . 1 1 1 . . . . . Repair Station Index 1 | . . 1 . . . . . . Scanalyzer Index 1 | . . . 1 . . . . . Alert Level 8 | . 1 . 2 3 1 1 . . Unreport Threat 4 | . . . 1 1 . 2 . . Security Status 1 | . . . 1 . . . . . Transport Status 1 | . . 1 . . . . . . Hauler Manifests 2 | . 1 1 . . . . . . Registered Components 2 | . . . 1 1 . . . . Zone Layout 1 | . . . . 1 . . . . Fabricator Hacks . | . . . . . . . . . Repair Station Hacks 7 | . . . . 7 . . . . Scan Component 4 | . . . . 4 . . . . Repair 3 | . . . . 3 . . . . Recycling Unit Hacks 7 | . 1 3 . . 1 1 1 . Report Inventory 3 | . 1 1 . . 1 . . . Retrieve Components 4 | . . 2 . . . 1 1 . Scanalyzer 13 | . . 10 . . . . 3 . Insert Component 7 | . . 5 . . . . 2 . Analyze 6 | . . 5 . . . . 1 . Garrison Access Hacks 2 | . . . . 1 . . 1 . Seal Access 1 | . . . . . . . 1 . Coupler Status 1 | . . . . 1 . . . . Unauthorized Hacks 47 | . 10 6 5 12 5 6 3 . Terminals 26 | . 7 4 5 3 4 3 . . Track 4 | . 1 1 2 . . . . . Botnet 21 | . 6 3 3 2 4 3 . . Disrupt 1 | . . . . 1 . . . . Fabricators . | . . . . . . . . . Repair Stations 1 | . 1 . . . . . . . Mechanics 1 | . 1 . . . . . . . Recycling Units 11 | . 2 1 . 4 1 . 3 . Monitor 1 | . 1 . . . . . . . Reject 7 | . 1 1 . 2 1 . 2 . Recyclers 2 | . . . . 1 . . 1 . Mask 1 | . . . . 1 . . . . Scanalyzers 1 | . . 1 . . . . . . Researchers 1 | . . 1 . . . . . . Garrison Access 8 | . . . . 5 . 3 . . Broadcast 1 | . . . . 1 . . . . Redirect 1 | . . . . 1 . . . . Reprogram 2 | . . . . 1 . 1 . . Intercept 2 | . . . . 1 . 1 . . Watchers 2 | . . . . 1 . 1 . . Data Cores Recovered 1 | . . . . 1 . . . . Used . | . . . . . . . . . Hacking Detections 50 | . 8 8 4 10 6 7 7 . Full Trace Events . | . . . . . . . . . Feedback Events . | . . . . . . . . . Feedback Blocked . | . . . . . . . . . Robot Schematics Acquired 1 | . . . . . 1 . . . Robots Built . | . . . . . . . . . Authchips . | . . . . . . . . . Time . | . . . . . . . . . Total Robot Build Rating . | . . . . . . . . . Part Schematics Acquired 18 | . . 5 . 1 11 . 1 . Parts Built . | . . . . . . . . . Authchips . | . . . . . . . . . Time . | . . . . . . . . . Total Part Build Rating . | . . . . . . . . . Parts Repaired 3 | . . . . 3 . . . . Time 138 | . . . . 138 . . . . Parts Recycled . | . . . . . . . . . Recycled Matter . | . . . . . . . . . Retrieved Matter . | . . . . . . . . . Retrieved Components 25 | . . 15 . . . 10 . . Parts Scanalyzed 7 | . . 5 . . . . 2 . Part Schematics Acquired 6 | . . 5 . . . . 1 . Parts Damaged 2 | . . 1 . . . . 1 . Bothacking | -11 -10 -9 -8 -8 -8 -6 -5 -5 ------------ Run | Scr Mat Mat Mat Sto Rec Fac Fac Ext Used RIF Installer . | . . . . . . . . . Robots Hacked . | . . . . . . . . . Non-combat . | . . . . . . . . . Combat . | . . . . . . . . . Robot Hacks Applied . | . . . . . . . . . Relay Couplers Released 3 | . . . 2 . . 1 . . Machine Destruction 3 | . . . 2 . . 1 . . Fabnet Peak Effective % . | . . . . . . . . . Robots Rewired . | . . . . . . . . . Allies Hacked . | . . . . . . . . . Hacks Repelled . | . . . . . . . . . Allies | -11 -10 -9 -8 -8 -8 -6 -5 -5 -------- Run | Scr Mat Mat Mat Sto Rec Fac Fac Ext Total Allies 4 | . . . . 4 . . . . Largest Group 3 | . . . . 3 . . . . Highest-Rated Group 100 | . . . . 100 . . . . Highest-Rated Ally 100 | . . . . 100 . . . . Total Orders 39 | . . . . 27 3 9 . . STAY 16 | . . . . 13 1 2 . . FOLLOW 7 | . . . . 5 1 1 . . EXPLORE 10 | . . . . 5 1 4 . . RETURN 6 | . . . . 4 . 2 . . Ally Attacks 19 | . . . . 19 . . . . Total Damage 212 | . . . . 212 . . . . Kills 3 | . . . . 3 . . . . Allies Corrupted 5 | . . . . 2 . 3 . . Allies Melted . | . . . . . . . . . Intel | -11 -10 -9 -8 -8 -8 -6 -5 -5 ------- Run | Scr Mat Mat Mat Sto Rec Fac Fac Ext Robot Analysis Total 1 | . . . 1 . . . . . Derelict Logs Recovered . | . . . . . . . . . Drone Launches 21 | . . . . 16 . 5 . . Drone Recoveries 5 | . . . . 4 . 1 . . Exploration | -11 -10 -9 -8 -8 -8 -6 -5 -5 ------------- Run | Scr Mat Mat Mat Sto Rec Fac Fac Ext Turns Passed 10989 | 290 1761 1084 1137 1862 594 2455 1370 436 Spaces Moved 5553 | 159 880 517 565 1029 281 1253 684 185 Core 17 | 12 . . . 5 . . . . Treads 2569 | 147 715 387 483 . . 24 628 185 Legs 2911 | . 165 130 82 1024 281 1229 . . Wheels 56 | . . . . . . . 56 . Hover . | . . . . . . . . . Flight . | . . . . . . . . . Fastest Speed 50 | 50 160 120 120 120 120 120 100 160 Average Speed 144 | 161 170 159 157 123 120 127 155 160 Slowest Speed 750 | 200 260 240 260 750 120 232 160 160 Overloaded Moves . | . . . . . . . . . Propulsion Burnouts . | . . . . . . . . . Robots Hopped . | . . . . . . . . . Cave-ins Triggered . | . . . . . . . . . Exploration Rate (%) 52 | 8 99 49 45 96 99 34 18 23 Regions Visited 8 Branch Regions 3 Pre-discovered Areas 1 | . . . . 1 . . . . Known Exits Taken 8 | 1 1 1 1 1 1 1 1 . Unknown Exits Taken . | . . . . . . . . . Scrap Searched . | . . . . . . . . . Spaces Dug . | . . . . . . . . . Terrain Destroyed 165 | . . 45 . 3 3 104 10 . Melee . | . . . . . . . . . Projectile 10 | . . . . 3 . 2 5 . AOE 155 | . . 45 . . 3 102 5 . Terrain Rammed . | . . . . . . . . . Walls Destroyed . | . . . . . . . . . Machines Disabled . | . . . . . . . . . Actions | -11 -10 -9 -8 -8 -8 -6 -5 -5 --------- Run | Scr Mat Mat Mat Sto Rec Fac Fac Ext Total 7708 | 184 1081 654 736 1500 521 1856 924 252 Wait 1205 | . 118 5 62 354 217 343 98 8 Move 5545 | 158 879 516 564 1028 280 1252 683 185 Hop . | . . . . . . . . . Pick Up 137 | 15 20 10 22 10 1 35 24 . Fast Attach 78 | 2 5 12 6 14 1 18 18 2 Attach 61 | 5 1 2 7 . . 33 8 5 Detach 9 | . . 1 2 2 . 3 . 1 Swap 41 | . 1 8 7 3 . 16 . 6 Drop 169 | . 19 23 24 20 2 39 42 . Fire 434 | 4 34 73 41 56 16 116 49 45 Melee . | . . . . . . . . . Ram . | . . . . . . . . . Kick 18 | . 1 . . 12 4 1 . . Crush 10 | . 3 4 1 . . . 2 . Escape Stasis . | . . . . . . . . . Rewire . | . . . . . . . . . Trap . | . . . . . . . . . Miscellaneous 1 | . . . . 1 . . . . Route ------- -11/Scrapyard -10/Materials (discovered 4 exits: *Mat x3 / *Min) -9/Materials (discovered 2 exits: *Mat x2) -8/Materials (discovered 2 exits: *Sto x2) -8/Storage (discovered 2 exits: *Fac / *Rec) -8/Recycling -6/Factory (discovered 2 exits: *Fac / *Low) -5/Factory (discovered 4 exits: *Upp x2 / *Ext x2) -5/Extension History --------- Turn | Location | Event 24 | -11/Scrapyard | Identified exit to Materials 24 | -11/Scrapyard | Discovered exit to Materials (range 15) 291 | -11/Scrapyard | Entered Materials 291 | -10/Materials | Evolved 1 slot: Utility x1 312 | -10/Materials | Build established: Hacker-Mutant 1058 | -10/Materials | Identified exit to Materials 1058 | -10/Materials | Discovered exit to Materials (range 16) 1223 | -10/Materials | Discovered exit to Materials (range 3) 1433 | -10/Materials | Discovered exit to Materials (range 4) 1529 | -10/Materials | Identified exit to Mines 1529 | -10/Materials | Discovered exit to Mines (range 13) 2052 | -10/Materials | Entered another Materials area 2052 | -9/Materials | Evolved 2 slots: Propulsion x1, Utility x1 2370 | -9/Materials | Identified exit to Materials 2370 | -9/Materials | Discovered exit to Materials (range 18) 2717 | -9/Materials | Discovered exit to Materials (range 18) 3095 | -9/Materials | Build established: Scavenger-Mutant 3136 | -9/Materials | Entered another Materials area 3136 | -8/Materials | Evolved 2 slots: Utility x1, Weapon x1 3138 | -8/Materials | Identified exit to Storage 3138 | -8/Materials | Discovered exit to Storage (range 15) 3389 | -8/Materials | Garrison activated, responded to threat 3427 | -8/Materials | Build established: Hacker-Gunner 4225 | -8/Materials | Build established: Scavenger-Gunner 4273 | -8/Materials | Entered Storage 4576 | -8/Storage | Garrison activated, responded to threat 5187 | -8/Storage | Repaired Gauss Rifle 5232 | -8/Storage | Repaired Gauss Rifle 5287 | -8/Storage | Repaired Lgt. Angular Momentum Engine 5353 | -8/Storage | Learned location of Armory (-4) 5591 | -8/Storage | Identified exit to Factory 5591 | -8/Storage | Discovered exit to Factory (range 54) 5873 | -8/Storage | Met 01-MTF 5971 | -8/Storage | Identified exit to Recycling 5971 | -8/Storage | Discovered exit to Recycling (range 4) 6057 | -8/Storage | Found Prototype Launcher 6058 | -8/Storage | Identified Scatter Rocket Array 6135 | -8/Storage | Entered Recycling 6135 | -8/Recycling | Accompanied by 10 allies (01-MTF) 6140 | -8/Recycling | 01-MTF left 6175 | -8/Recycling | Spotter reported a threat 6176 | -8/Recycling | Build established: Hacker-Mutant 6181 | -8/Recycling | Spotter reported a threat 6181 | -8/Recycling | Spotter reported a threat 6202 | -8/Recycling | Spotter reported a threat 6222 | -8/Recycling | Spotter reported a threat 6222 | -8/Recycling | Spotter reported a threat 6226 | -8/Recycling | Spotter reported a threat 6228 | -8/Recycling | Spotter reported a threat 6234 | -8/Recycling | Spotter reported a threat 6247 | -8/Recycling | Spotter reported a threat 6249 | -8/Recycling | Spotter reported a threat 6255 | -8/Recycling | Spotter reported a threat 6261 | -8/Recycling | Identified exit to Factory 6261 | -8/Recycling | Discovered exit to Factory (range 53) 6275 | -8/Recycling | Spotter reported a threat 6291 | -8/Recycling | Spotter reported a threat 6294 | -8/Recycling | Spotter reported a threat 6298 | -8/Recycling | Spotter reported a threat 6299 | -8/Recycling | Spotter reported a threat 6309 | -8/Recycling | Spotter reported a threat 6310 | -8/Recycling | Spotter reported a threat 6321 | -8/Recycling | Spotter reported a threat 6327 | -8/Recycling | Spotter reported a threat 6343 | -8/Recycling | Spotter reported a threat 6347 | -8/Recycling | Spotter reported a threat 6351 | -8/Recycling | Spotter reported a threat 6362 | -8/Recycling | Spotter reported a threat 6375 | -8/Recycling | Spotter reported a threat 6424 | -8/Recycling | Spotter reported a threat 6425 | -8/Recycling | Spotter reported a threat 6425 | -8/Recycling | Spotter reported a threat 6428 | -8/Recycling | Spotter reported a threat 6442 | -8/Recycling | Spotter reported a threat 6443 | -8/Recycling | Spotter reported a threat 6445 | -8/Recycling | Spotter reported a threat 6477 | -8/Recycling | Spotter reported a threat 6478 | -8/Recycling | Spotter reported a threat 6494 | -8/Recycling | Spotter reported a threat 6495 | -8/Recycling | Spotter reported a threat 6496 | -8/Recycling | Spotter reported a threat 6507 | -8/Recycling | Spotter reported a threat 6512 | -8/Recycling | Spotter reported a threat 6530 | -8/Recycling | Spotter reported a threat 6531 | -8/Recycling | Spotter reported a threat 6547 | -8/Recycling | Spotter reported a threat 6549 | -8/Recycling | Spotter reported a threat 6560 | -8/Recycling | Spotter reported a threat 6582 | -8/Recycling | Spotter reported a threat 6583 | -8/Recycling | Spotter reported a threat 6584 | -8/Recycling | Spotter reported a threat 6600 | -8/Recycling | Spotter reported a threat 6613 | -8/Recycling | Spotter reported a threat 6634 | -8/Recycling | Spotter reported a threat 6635 | -8/Recycling | Spotter reported a threat 6641 | -8/Recycling | Spotter reported a threat 6660 | -8/Recycling | Spotter reported a threat 6668 | -8/Recycling | Spotter reported a threat 6685 | -8/Recycling | Spotter reported a threat 6685 | -8/Recycling | Spotter reported a threat 6687 | -8/Recycling | Spotter reported a threat 6729 | -8/Recycling | Entered Factory 6729 | -6/Factory | Accompanied by 9 allies 6729 | -6/Factory | Evolved 4 slots: Power x1, Utility x3 6832 | -6/Factory | Garrison activated, responded to threat 7079 | -6/Factory | Search patrols dispatched 7326 | -6/Factory | Lost 3 parts (1p2u) 7581 | -6/Factory | Build established: Hacker-Gunner 7779 | -6/Factory | First assault squad dispatched 7834 | -6/Factory | Spotted B-75 Beast 8113 | -6/Factory | Build established: Scavenger-Tank 8297 | -6/Factory | Identified exit to Lower Caves 8297 | -6/Factory | Discovered exit to Lower Caves (range 11) 8912 | -6/Factory | Build established: Hacker-Gunner 9159 | -6/Factory | Identified exit to Factory 9159 | -6/Factory | Discovered exit to Factory (range 5) 9184 | -6/Factory | Entered another Factory area 9184 | -5/Factory | Evolved 2 slots: Propulsion x1, Utility x1 9698 | -5/Factory | Build established: Scavenger-Tank 10145 | -5/Factory | Identified exit to Upper Caves 10145 | -5/Factory | Identified exit to Extension 10554 | -5/Factory | Entered Extension 10711 | -5/Extension | Spotted B-75 Beast 10851 | -5/Extension | Destroyed B-75 Beast 10904 | -5/Extension | Disrupted transfer network 10926 | -5/Extension | Spotted B-75 Beast 10990 | -5/Extension | Self-destructed Last Messages --------------- 10982_ Critical hit (Burn: +37). 10982_ Penetrated by Slug. 10983_ Power failure, Neutrino Core shutdown. 10984_ C-30 ARC bursts open, deploying its payload. 10984_ S-27 Virus unfolds itself. 10985_ Activated siege mode. 10985_ K-01 Serf destroyed. 10985_ Penetrated by Slug. 10985_ Med. Reflective Plating destroyed. 10985_ Penetrated by Slug. 10986_ System corrupted: Component data lost. 10987_ System corrupted: Wave Gun failed to cycle. 10988_ Power failure, Neutrino Core shutdown. 10988_ Penetrated by Slug. 10988_ C-30 ARC bursts open, deploying its payload. 10988_ L-41 Fighter unfolds itself. 10988_ G-50 Soldier unfolds itself. 10988_ Penetrated by Slug. 10988_ Wave Gun destroyed. 10988_ Penetrated by Slug. Map ----- +----------------------------------------------------+ | ?????????????????????????????????????????????????? | | ?????????????????????????????????????????????????? | | ?????????????????????????????????????????????????? | | ?????????????????????????????????????????????????? | | ?????????????????????????????????????????????????? | | ?????????????????????????????????????????????????? | | ?????????????????????????????????????????????????? | | ?????????????????????????????????????????????????? | | ?????????????????????????????????????????????????? | | ?????????????????????????????????????????????????? | | ?????????????????????????????????????????????????? | | ?????????????????????????????????????????????????? | | ?????????????????????????????????????????????????? | | ??????????????????????????????#??????????????????? | | ????????????????????????????? #??????????????????? | | ????????????????????????????? #??##??#???????????? | | ????????????????????????????# ### ## ###?????????? | | ????????????????????????????" ""Y Y "" ????????? | | ????????????????????????????" " " " ??????? | | ??????????????????????????? ??????? | | ???????????##???####??????? ??????? | | ###################;####### #?????? | | u % u ?????? | | % %]! l ????? | | %** !%=!* =%= s h ????? | | = =!!!!% =!=[!% !@!% h% ????? | | =%/!=%]%]%==!=*%]%u!%! BB s sg ????? | | ####+######################*BB R #?????? | | ????????????????????????? # g #?????? | | ?????????????????????????##? #?????? | | ????????????????????????????? ??????? | | ?????????????????????????????? ??????? | | ??????????????????????????????##T#"""######??????? | | ?????????????????????????????????#???????????????? | | ?????????????????????????????????????????????????? | | | | | | | | | | | | | | | | | | | | | | | | | | | | | | | +----------------------------------------------------+ Best States ------------- Heat Dissipation 78 Coolant Potential 80 Energy Generation 33 Energy Capacity 880 Matter Stores 300 Matter Capacity 300 Sight Range 20 Terrain Scan Range 20 Terrain Scan Density 10 Additional Mass Support 9 Armor Coverage 900 Resistance: KI 35 Resistance: TH 50 Resistance: EX 35 Resistance: EM 35 Resistance: I 35 Resistance: S 35 Resistance: P 35 Core Shielding 30 Weapon Shielding 66 Point Defense Rating 80 Evasion (%) 55 Targeting Accuracy 8 Target Analysis 5 Core Analysis 6 Recoil Reduction 4 Salvage Targeting 1 Offensive Hacking 20 Authchip Count 4 Item Schematics ----------------- Lrg. Storage Unit | -9/Materials | Scanalyzed Imp. Terrain Scanner | -9/Materials | Scanalyzed Hrd. Light Armor Plating | -9/Materials | Scanalyzed Adv. Beam Cannon | -9/Materials | Scanalyzed Hvy. Ion Engine | -9/Materials | Scanalyzed System Shield | -8/Storage | Hacked Adv. Treads | -8/Recycling | Hacked Imp. Sensor Array | -8/Recycling | Hacked Imp. Signal Interpreter | -8/Recycling | Hacked Magnetic Acceleration Cannon | -8/Recycling | Hacked Component Analysis Suite | -8/Recycling | Hacked Imp. Datajack | -8/Recycling | Hacked Carbon-fiber Leg | -8/Recycling | Hacked Hvy. Armor Plating | -8/Recycling | Hacked Lrg. Battery | -8/Recycling | Hacked Nuclear Core | -8/Recycling | Hacked Imp. Shield Generator | -8/Recycling | Hacked Imp. Coolant Injector | -5/Factory | Scanalyzed Robot Schematics ------------------ H-55 Commando | -8/Recycling | Hacked Fabricated ------------ Nothing Alien Tech Used ----------------- None Achievements -------------- Treasure Hunter Challenges ------------ None Game ------ Seed ShockHeavyRedirector Manual? 0 Play Time 03:18:29 Cumulative 188.6 hours Start 2022.03.26 @ 14:38:30 End 2022.03.26 @ 19:15:19 Sessions 1 Manual Loads 0 Difficulty Explorer Special Mode None Game No. 35 Rogue 9 Adventurer 0 Explorer 26 Win Type - Total 0 Types 0/0/0/0/0/0/0/0/0 Lore% 46 Gallery% 46 Achievement% 42 Wizard Run 0 Options --------- ASCII 0 Keyboard 0 Movement Mouse Keybinds 0 Fullscreen 1 Font 18/SmallcapsGlow Map View 76x50 Tactical HUD 1 Map Filters NONE Filters NONE Steam 1 RUN: 64dd2ace-9227-4c60-af01-417df6f737a5